bitfinex/quotes_SOLUSD_20240612
["timestamp","ask_amount","ask_price","bid_price","bid_amount"]
[1718167112962,2.4381,151.76,151.7,2.4389]
[1718167113127,2.4379,151.77,151.71,2.4388]
[1718167113334,2.438,151.76,151.7,2.4389]
[1718167114258,2.4377,151.78,151.72,2.4386]
[1718167114571,2.4379,151.77,151.71,2.4387]
[1718167114853,2.4379,151.77,151.68,27.4878]
[1718167114854,19.81,151.79,151.68,20.0]
[1718167115070,31.9988,151.78,151.68,2.4392]
[1718167115355,2.4386,151.73,151.67,24.4475]
[1718167115562,2.4384,151.74,151.68,2.4393]
[1718167115945,2.4383,151.75,151.69,2.4391]
[1718167116351,2.4383,151.75,151.68,2.4392]
[1718167116556,2.4384,151.74,151.68,2.4392]
[1718167116751,2.4382,151.75,151.69,2.4391]
[1718167117758,2.4381,151.76,151.69,2.4391]
[1718167118057,2.4381,151.76,151.7,2.439]
[1718167119038,2.4381,151.76,151.69,2.4391]
[1718167119234,2.4381,151.76,151.7,2.439]
[1718167119458,2.4382,151.75,151.69,2.4391]
[1718167119845,2.4382,151.75,151.67,22.3481]
[1718167119846,2.4384,151.74,151.68,2.4392]
[1718167120960,25.04,151.74,151.69,2.4391]
[1718167121157,25.04,151.74,151.67,22.3481]
[1718167121158,25.04,151.74,151.7,2.4389]
[1718167121762,25.04,151.74,151.71,2.4388]
[1718167122654,25.04,151.74,151.67,22.0081]
[1718167122862,25.04,151.74,151.7,2.4389]
[1718167123054,25.04,151.74,151.71,2.4388]
[1718167123257,25.04,151.74,151.7,2.4389]
[1718167123449,25.04,151.74,151.7,2.439]
[1718167123644,25.04,151.74,151.71,2.4387]
[1718167123851,25.04,151.74,151.7,2.4389]
[1718167124170,25.04,151.74,151.69,2.4391]
[1718167124877,25.04,151.74,151.7,2.439]
[1718167125182,25.04,151.74,151.69,2.439]
[1718167125473,25.04,151.74,151.7,2.439]
[1718167126758,25.04,151.74,151.71,2.4388]
[1718167127767,25.04,151.74,151.72,2.4386]
[1718167127949,27.4779,151.77,151.71,2.4387]
[1718167128876,2.438,151.76,151.71,2.4387]
[1718167129375,2.438,151.76,151.7,2.6089]
[1718167129576,2.438,151.76,151.71,2.4388]
[1718167129747,27.4779,151.77,151.71,2.4388]
[1718167130552,2.438,151.76,151.71,2.4388]
[1718167130869,27.4779,151.77,151.71,2.4388]
[1718167131476,2.4383,151.75,151.69,2.4391]
[1718167132145,2.4384,151.74,151.69,2.4391]
[1718167132347,2.4382,151.75,151.69,2.4391]
[1718167133257,2.4382,151.75,151.7,2.439]
[1718167133769,2.4382,151.75,151.69,2.439]
[1718167134983,2.4382,151.75,151.7,2.4389]
[1718167135653,2.4381,151.76,151.7,2.4389]
[1718167135849,25.04,151.77,151.68,0.68]
[1718167135850,27.4779,151.77,151.71,2.4388]
[1718167136071,2.438,151.76,151.71,2.4388]
[1718167136581,27.4779,151.77,151.71,2.4388]
[1718167137175,27.478,151.77,151.71,2.4388]
[1718167137781,27.478,151.77,151.72,2.4386]
[1718167137988,25.04,151.77,151.72,2.4386]
[1718167140163,27.4779,151.77,151.72,2.4386]
[1718167140978,2.4381,151.76,151.7,2.4389]
[1718167142180,25.04,151.77,151.72,2.4386]
[1718167142386,27.4779,151.77,151.72,2.4386]
[1718167142563,27.4779,151.77,151.71,2.4387]
[1718167142763,27.4779,151.77,151.69,4.8782]
[1718167142764,25.04,151.77,151.72,2.4386]
[1718167142963,27.4779,151.77,151.72,2.4386]
[1718167143163,27.4779,151.77,151.71,2.4387]
[1718167143875,2.4379,151.77,151.71,2.4387]
[1718167144186,25.04,151.76,151.72,2.4386]
[1718167144362,25.04,151.76,151.71,4.8776]
[1718167144683,25.04,151.76,151.72,2.4385]
[1718167148406,25.04,151.76,151.71,2.4388]
[1718167150174,2.4379,151.77,151.71,2.4388]
[1718167150399,27.4779,151.77,151.71,2.4388]
[1718167150680,2.4376,151.79,151.73,2.4384]
[1718167150894,8.34,151.74,151.73,2.4384]
[1718167151072,18.0039,151.8,151.74,2.4382]
[1718167151278,8.34,151.75,151.74,2.4382]
[1718167151683,3.2766301,151.81,151.75,2.438]
[1718167151877,8.34,151.76,151.75,2.438]
[1718167152098,8.34,151.76,151.74,2.7783]
[1718167152376,8.34,151.75,151.74,2.4383]
[1718167152909,27.4574,151.8,151.74,2.4383]
[1718167153575,25.02,151.8,151.73,0.34]
[1718167153785,27.4574,151.8,151.74,2.4382]
[1718167155491,25.02,151.8,151.74,6.6382]
[1718167155700,2.4377,151.78,151.73,15.4782]
[1718167155897,2.4376,151.79,151.73,17.9167]
[1718167156415,2.4377,151.78,151.73,15.4782]
[1718167156622,25.02,151.8,151.73,15.4782]
[1718167156796,27.4575,151.8,151.74,2.4383]
[1718167157596,2.4377,151.78,151.73,15.4782]
[1718167157804,2.4377,151.78,151.72,2.4386]
[1718167157993,2.4378,151.78,151.71,6.2518]
[1718167158191,32.3323,151.8,151.71,6.2518]
[1718167158387,4.8751,151.79,151.71,6.2518]
[1718167158613,2.4379,151.77,151.71,6.2518]
[1718167158797,27.4579,151.77,151.71,8.6906]
[1718167158997,2.438,151.76,151.71,6.2518]
[1718167159798,27.4579,151.77,151.71,8.6906]
[1718167160020,25.02,151.77,151.71,6.2518]
[1718167160310,25.02,151.77,151.72,2.4386]
[1718167160519,2.4379,151.77,151.71,8.6905]
[1718167161317,2.438,151.76,151.71,6.2518]
[1718167161993,25.02,151.78,151.71,6.2518]
[1718167162199,2.4379,151.77,151.71,8.6906]
[1718167162694,27.4578,151.78,151.72,2.4386]
[1718167163040,2.4382,151.76,151.71,6.2518]
[1718167164115,2.4379,151.77,151.71,8.6906]
[1718167164499,2.4379,151.77,151.71,6.2518]
[1718167165509,2.4379,151.77,151.71,8.6906]
[1718167166904,27.4578,151.78,151.71,6.2518]
[1718167167105,27.4578,151.78,151.71,8.6905]
[1718167167515,27.4578,151.78,151.72,2.4386]
[1718167168328,25.02,151.78,151.73,2.4384]
[1718167168504,25.02,151.78,151.73,2.4385]
[1718167168830,25.02,151.78,151.74,2.4383]
[1718167169828,25.02,151.78,151.75,2.4381]
[1718167170130,3.2766301,151.81,151.75,2.4381]
[1718167170131,28.2966301,151.81,151.75,2.4381]
[1718167171911,28.2966301,151.81,151.76,2.438]
[1718167172223,28.2966301,151.81,151.73,0.17]
[1718167172433,28.2966301,151.81,151.73,0.68]
[1718167172603,25.8594301,151.81,151.77,2.4378]
[1718167172803,8.34,151.78,151.77,2.4378]
[1718167173203,8.34,151.78,151.74,20.906]
[1718167173204,8.34,151.78,151.76,2.4379]
[1718167173707,8.34,151.77,151.76,2.6079]
[1718167173900,8.34,151.77,151.76,3.1179]
[1718167174102,8.34,151.78,151.77,2.4377]
[1718167174519,0.8394301,151.81,151.79,2.4374]
[1718167174520,8.34,151.8,151.79,2.4374]
[1718167175040,8.34,151.8,151.77,6.9152]
[1718167175222,0.8394301,151.81,151.77,6.9152]
[1718167175223,8.34,151.79,151.78,2.4376]
[1718167176235,8.34,151.79,151.77,8.843]
[1718167176445,8.34,151.78,151.77,8.843]
[1718167177133,8.34,151.79,151.78,2.4376]
[1718167177824,0.8394301,151.81,151.79,2.4375]
[1718167178027,8.34,151.8,151.79,2.4375]
[1718167178942,0.8394301,151.81,151.8,2.4374]
[1718167179239,9.1794301,151.81,151.8,2.4374]
[1718167179939,0.8394301,151.81,151.8,23.8609]
[1718167180147,0.8394301,151.81,151.8,24.2009]
[1718167180332,9.1794301,151.81,151.8,19.3261]
[1718167181222,9.1794301,151.81,151.8,40.5937]
[1718167181223,0.8394301,151.81,151.8,40.5937]
[1718167181425,0.8394301,151.81,151.8,47.9059]
[1718167182520,0.8394301,151.81,151.8,30.8441]
[1718167182826,9.1794301,151.81,151.8,9.7606]
[1718167183446,9.1794301,151.81,151.8,9.4206]
[1718167183952,9.1794301,151.81,151.8,2.4374]
[1718167184320,9.1794301,151.81,151.79,2.4375]
[1718167184520,9.1794301,151.81,151.76,25.9772]
[1718167184521,0.8394301,151.81,151.8,2.4374]
[1718167184725,9.1794301,151.81,151.8,2.4374]
[1718167185929,9.1794301,151.81,151.8,2.7774]
[1718167186247,9.1794301,151.81,151.8,3.1174]
[1718167186858,9.1794301,151.81,151.8,2.4374]
[1718167187332,9.1794301,151.81,151.79,2.4374]
[1718167187940,9.1794301,151.81,151.8,2.4374]
[1718167189931,0.8394301,151.81,151.8,2.7774]
[1718167190251,0.8394301,151.81,151.8,3.1174]
[1718167191251,9.1794301,151.81,151.8,3.1174]
[1718167191661,0.8394301,151.81,151.8,25.054]
[1718167200260,0.8394301,151.81,151.8,2.4374]
[1718167200457,9.1794301,151.81,151.8,2.4374]
[1718167200872,9.1794301,151.81,151.78,14.626]
[1718167200873,9.1794301,151.81,151.77,100.0]
[1718167201057,0.8394301,151.81,151.8,2.4374]
[1718167201252,0.8394301,151.81,151.8,7.3122]
[1718167201479,0.8394301,151.81,151.8,24.374]
[1718167201962,0.8394301,151.81,151.8,25.054]
[1718167206484,0.8394301,151.81,151.8,2.4374]
[1718167206803,0.8394301,151.81,151.8,7.3122]
[1718167207170,0.8394301,151.81,151.8,2.4374]
[1718167208470,0.8394301,151.81,151.8,3.1174]
[1718167208866,0.8394301,151.81,151.8,125.054]
[1718167209279,0.8394301,151.81,151.8,145.054]
[1718167211194,0.8394301,151.81,151.8,7.3122]
[1718167212204,9.1794301,151.81,151.8,2.4374]
[1718167212891,0.8394301,151.81,151.8,2.4374]
[1718167213198,0.8394301,151.81,151.8,2.6074]
[1718167213496,0.8394301,151.81,151.8,3.1174]
[1718167213802,9.1794301,151.81,151.8,3.1174]
[1718167216922,0.8394301,151.81,151.8,25.054]
[1718167217126,9.1794301,151.81,151.8,2.4374]
[1718167217306,9.1794301,151.81,151.79,2.4374]
[1718167217503,8.34,151.8,151.79,2.4374]
[1718167218398,8.34,151.8,151.79,2.6074]
[1718167218627,8.34,151.8,151.79,3.1174]
[1718167221816,8.34,151.8,151.76,125.5158]
[1718167221817,8.34,151.8,151.76,12.1892]
[1718167222003,8.34,151.77,151.75,7.3143]
[1718167222205,8.34,151.78,151.76,4.8759]
[1718167222430,8.34,151.78,151.77,2.4378]
[1718167222814,8.34,151.78,151.77,7.3135]
[1718167223014,8.34,151.78,151.77,14.6271]
[1718167223214,8.34,151.78,151.77,2.6078]
[1718167223414,8.34,151.78,151.71,31.227769]
[1718167223631,8.34,151.73,151.72,2.4387]
[1718167223824,8.34,151.73,151.69,4.8781]
[1718167224017,8.34,151.72,151.71,2.4387]
[1718167225121,8.34,151.76,151.7,4.8777]
[1718167225122,33.36,151.76,151.7,4.8777]
[1718167225323,33.36,151.76,151.73,2.4384]
[1718167226036,33.36,151.76,151.7,12.1946]
[1718167226239,2.4377,151.78,151.73,2.4383]
[1718167226446,8.34,151.74,151.73,2.4383]
[1718167226752,15.3527,151.79,151.73,5.3869]
[1718167226926,15.3527,151.79,151.76,2.4379]
[1718167227122,8.34,151.77,151.75,2.4381]
[1718167227336,8.34,151.76,151.75,2.4381]
[1718167227836,8.34,151.76,151.73,2.4385]
[1718167228044,15.3527,151.79,151.73,2.4385]
[1718167228045,8.34,151.74,151.73,2.4385]
[1718167228347,15.3527,151.79,151.74,2.4382]
[1718167228522,8.34,151.75,151.74,2.4382]
[1718167228724,15.3527,151.79,151.74,2.4382]
[1718167228948,8.34,151.75,151.74,2.4382]
[1718167230148,15.3527,151.79,151.78,2.4377]
[1718167230345,15.3527,151.79,151.77,2.4378]
[1718167230552,8.34,151.78,151.76,2.4379]
[1718167230728,8.34,151.77,151.74,0.17]
[1718167230923,8.34,151.77,151.73,4.8769]
[1718167231741,8.34,151.77,151.75,2.4381]
[1718167232055,15.3527,151.79,151.76,2.438]
[1718167232252,8.34,151.77,151.76,2.438]
[1718167233332,8.34,151.77,151.75,2.4381]
[1718167233651,8.34,151.76,151.75,2.4381]
[1718167235144,15.3527,151.79,151.75,2.4381]
[1718167235322,8.34,151.76,151.75,2.4381]
[1718167235728,8.34,151.76,151.69,7.3174]
[1718167235928,33.36,151.76,151.73,2.4384]
[1718167236354,8.34,151.74,151.73,2.4384]
[1718167237671,8.34,151.74,151.69,9.7566]
[1718167237830,33.36,151.76,151.67,15.3527]
[1718167238030,8.34,151.7,151.64,129.6059]
[1718167238334,8.34,151.7,151.69,2.4391]
[1718167238928,8.34,151.71,151.7,2.439]
[1718167241558,35.798,151.76,151.71,2.4388]
[1718167241762,8.34,151.72,151.71,2.4388]
[1718167241932,33.36,151.76,151.72,2.4386]
[1718167242133,8.34,151.73,151.72,2.4386]
[1718167242436,15.4509,151.72,151.66,2.4396]
[1718167242757,15.4509,151.72,151.64,9.7593]
[1718167242758,17.8896,151.72,151.67,2.4394]
[1718167242952,8.34,151.68,151.67,2.4394]
[1718167243153,2.4388,151.71,151.66,2.4395]
[1718167243460,8.34,151.67,151.66,2.4395]
[1718167243836,8.34,151.67,151.61,11.2609]
[1718167244033,8.34,151.64,151.63,2.44]
[1718167244238,8.34,151.64,151.59,20.8911]
[1718167244440,8.34,151.63,151.59,4.8814]
[1718167244655,8.34,151.62,151.61,2.4403]
[1718167244975,8.34,151.62,151.59,4.8813]
[1718167245438,8.34,151.62,151.61,2.4404]
[1718167246657,2.4396,151.66,151.61,2.4404]
[1718167246960,16.2781,151.66,151.6,2.4405]
[1718167247265,2.44,151.64,151.58,2.4408]
[1718167247565,27.5,151.64,151.58,2.4408]
[1718167247738,2.4403,151.62,151.56,2.4411]
[1718167248063,2.4404,151.61,151.56,2.4411]
[1718167248366,30.5248,151.65,151.57,2.4411]
[1718167248572,25.06,151.62,151.58,2.4409]
[1718167248774,25.06,151.62,151.57,2.441]
[1718167248964,2.4407,151.6,151.52,4.8837]
[1718167249153,2.4408,151.59,151.5,4.8844]
[1718167249353,2.4408,151.59,151.54,2.4414]
[1718167249862,2.4406,151.6,151.54,2.4414]
[1718167250059,2.4405,151.61,151.52,4.8837]
[1718167250368,27.5004,151.62,151.56,2.4411]
[1718167250672,2.4405,151.61,151.55,2.4413]
[1718167251376,25.06,151.62,151.55,2.4413]
[1718167251678,2.4405,151.61,151.56,2.4412]
[1718167251851,27.5003,151.62,151.56,2.4412]
[1718167252051,27.5003,151.62,151.59,2.4406]
[1718167252052,25.06,151.62,151.59,2.4406]
[1718167252293,25.06,151.62,151.56,0.17]
[1718167252577,16.2781,151.66,151.6,4.881]
[1718167252762,16.2781,151.66,151.61,5.3908]
[1718167252961,16.2781,151.66,151.64,2.4398]
[1718167253789,16.2781,151.66,151.62,2.4402]
[1718167254078,16.2781,151.66,151.63,2.4401]
[1718167256686,16.2781,151.66,151.64,2.4399]
[1718167256866,16.2781,151.66,151.63,2.4401]
[1718167257178,16.2781,151.66,151.64,2.4399]
[1718167257668,16.2781,151.66,151.63,2.44]
[1718167259768,16.2781,151.66,151.62,2.4402]
[1718167260503,16.2781,151.66,151.63,2.4401]
[1718167260978,16.2781,151.66,151.62,2.4402]
[1718167261191,16.2781,151.66,151.64,2.4399]
[1718167261362,16.2781,151.66,151.63,2.44]
[1718167262088,16.2781,151.66,151.62,2.4402]
[1718167262464,18.7177,151.66,151.61,2.4404]
[1718167263075,16.2781,151.66,151.62,2.4402]
[1718167263489,16.2781,151.66,151.61,2.4403]
[1718167263981,16.2781,151.66,151.6,0.17]
[1718167264192,16.2781,151.66,151.63,2.44]
[1718167265304,16.2781,151.66,151.62,2.4402]
[1718167265807,16.2781,151.66,151.63,2.4401]
[1718167266004,16.2781,151.66,151.62,2.4402]
[1718167266288,16.2781,151.66,151.63,2.4401]
[1718167266779,25.06,151.68,151.65,2.4398]
[1718167266987,21.0964,151.7,151.66,2.4396]
[1718167267568,15.2614,151.7,151.67,2.4394]
[1718167267994,15.2614,151.7,151.68,2.4392]
[1718167268186,15.2614,151.7,151.64,0.17]
[1718167268370,15.2614,151.7,151.66,2.4395]
[1718167268874,15.2614,151.7,151.67,2.4394]
[1718167269391,15.2614,151.7,151.65,4.8795]
[1718167269602,15.2614,151.7,151.67,2.4394]
[1718167269890,15.2614,151.7,151.69,2.4391]
[1718167270092,23.5348,151.74,151.69,2.4391]
[1718167270298,21.0964,151.74,151.7,2.439]
[1718167270470,15.2614,151.74,151.69,2.4391]
[1718167270981,17.6998,151.74,151.69,2.4391]
[1718167271297,2.4386,151.73,151.68,2.9492]
[1718167271468,2.4386,151.73,151.68,0.17]
[1718167271670,17.6998,151.74,151.68,0.51]
[1718167271892,17.6998,151.74,151.68,0.34]
[1718167272102,17.6998,151.74,151.69,2.4391]
[1718167273006,15.2614,151.74,151.69,2.4391]
[1718167273169,15.2614,151.74,151.7,2.6089]
[1718167274816,17.6998,151.74,151.69,0.17]
[1718167275191,17.6998,151.74,151.69,0.34]
[1718167275799,17.6998,151.74,151.69,2.4391]
[1718167275998,15.2614,151.74,151.7,2.439]
[1718167276206,15.2614,151.74,151.66,34.834399]
[1718167276207,15.2614,151.74,151.69,2.4391]
[1718167276891,15.2614,151.74,151.7,2.439]
[1718167277093,8.35,151.71,151.7,2.439]
[1718167277605,8.35,151.71,151.69,2.4391]
[1718167277987,8.35,151.7,151.69,2.4391]
[1718167278294,8.35,151.7,151.68,2.9492]
[1718167278499,8.35,151.69,151.68,2.9492]
[1718167278680,8.35,151.69,151.67,2.4394]
[1718167278884,8.35,151.68,151.67,2.4394]
[1718167279173,8.35,151.68,151.65,4.8796]
[1718167279381,8.35,151.68,151.66,2.4396]
[1718167279685,8.35,151.68,151.67,2.4395]
[1718167282397,8.35,151.68,151.67,2.7795]
[1718167285688,8.35,151.68,151.67,3.1195]
[1718167291134,15.2614,151.74,151.7,2.439]
[1718167291310,8.35,151.71,151.69,2.439]
[1718167291505,8.35,151.7,151.69,2.609]
[1718167291710,15.2614,151.74,151.71,2.4388]
[1718167291922,8.35,151.72,151.69,0.51]
[1718167292235,15.2614,151.74,151.71,2.4387]
[1718167292398,8.35,151.72,151.71,2.4387]
[1718167292715,20.937,151.78,151.72,4.8774]
[1718167292925,20.937,151.78,151.74,2.4382]
[1718167293225,15.102,151.78,151.74,2.4382]
[1718167293408,8.35,151.75,151.74,2.4382]
[1718167293592,8.35,151.75,151.74,2.6082]
[1718167294010,8.35,151.75,151.74,2.7782]
[1718167294210,8.35,151.75,151.74,3.1182]
[1718167294531,16.8694301,151.81,151.76,2.4379]
[1718167294850,8.35,151.77,151.76,2.4379]
[1718167295041,16.8694301,151.81,151.77,2.4378]
[1718167295202,16.8694301,151.81,151.76,0.51]
[1718167295203,16.8694301,151.81,151.78,2.4377]
[1718167295399,8.35,151.79,151.77,2.6078]
[1718167295602,8.35,151.78,151.74,0.34]
[1718167295799,8.35,151.75,151.74,2.7783]
[1718167295999,8.35,151.75,151.74,3.1183]
[1718167296427,16.8694301,151.81,151.76,2.438]
[1718167296609,8.35,151.77,151.76,2.438]
[1718167296805,8.35,151.77,151.76,2.608]
[1718167297016,8.35,151.77,151.76,2.948]
[1718167297205,8.35,151.77,151.76,3.118]
[1718167297600,16.8694301,151.81,151.77,0.17]
[1718167297601,0.8394301,151.81,151.77,0.17]
[1718167297818,8.35,151.8,151.79,2.4375]
[1718167298604,8.35,151.8,151.78,2.4376]
[1718167299037,8.35,151.8,151.79,2.4375]
[1718167299438,8.35,151.8,151.79,2.6075]
[1718167300939,8.35,151.8,151.77,0.34]
[1718167301165,8.35,151.78,151.77,0.17]
[1718167301365,8.35,151.78,151.77,2.7778]
[1718167301535,0.8394301,151.81,151.79,2.4375]
[1718167301735,8.35,151.8,151.79,2.4375]
[1718167301931,0.8394301,151.81,151.79,2.7774]
[1718167302235,8.35,151.8,151.78,0.17]
[1718167302448,8.35,151.79,151.78,2.7777]
[1718167302645,8.35,151.79,151.78,2.9477]
[1718167302846,8.35,151.79,151.78,3.1177]
[1718167303049,8.35,151.79,151.77,2.4378]
[1718167303229,8.35,151.78,151.77,2.4378]
[1718167303443,8.35,151.78,151.77,2.7778]
[1718167304043,0.8394301,151.81,151.78,2.4377]
[1718167304241,8.35,151.79,151.78,2.4377]
[1718167304440,8.35,151.79,151.78,2.7777]
[1718167304958,8.35,151.79,151.78,3.1177]
[1718167308142,8.35,151.79,151.78,0.68]
[1718167308364,8.35,151.79,151.78,3.1177]
[1718167308741,0.8394301,151.81,151.75,27.3144]
[1718167308942,8.35,151.76,151.72,4.8773]
[1718167309157,8.35,151.76,151.72,24.8773]
[1718167309356,8.35,151.74,151.71,4.8776]
[1718167309660,8.35,151.74,151.73,2.4385]
[1718167311442,8.35,151.74,151.73,2.7785]
[1718167311659,8.35,151.75,151.74,7.4849]
[1718167311854,8.35,151.75,151.74,7.9949]
[1718167315652,8.35,151.75,151.74,2.7783]
[1718167315860,8.35,151.75,151.72,24.8773]
[1718167315861,8.35,151.75,151.72,2.4386]
[1718167316161,8.35,151.73,151.67,12.1969]
[1718167316367,8.35,151.68,151.66,22.3229]
[1718167316666,38.2762,151.76,151.68,2.4392]
[1718167316667,8.35,151.69,151.68,2.4392]
[1718167316868,2.4384,151.74,151.69,2.439]
[1718167317049,8.35,151.7,151.69,2.439]
[1718167317467,8.35,151.7,151.68,2.4392]
[1718167317766,8.35,151.69,151.68,2.4392]
[1718167319656,8.35,151.69,151.66,0.17]
[1718167319843,16.6196,151.72,151.66,0.51]
[1718167320048,8.35,151.67,151.66,0.51]
[1718167320257,8.35,151.67,151.66,2.4396]
[1718167320653,16.6196,151.72,151.68,2.4392]
[1718167320859,8.35,151.69,151.68,2.4392]
[1718167321870,8.35,151.69,151.68,2.7792]
[1718167324382,8.35,151.69,151.67,2.4394]
[1718167324557,8.35,151.68,151.67,2.4394]
[1718167324760,8.35,151.68,151.63,7.3198]
[1718167325081,8.35,151.64,151.63,2.4401]
[1718167325454,33.4,151.68,151.63,4.8803]
[1718167325761,16.6196,151.72,151.64,7.3198]
[1718167325762,8.35,151.65,151.64,7.3198]
[1718167326560,8.35,151.65,151.64,2.9499]
[1718167326760,8.35,151.65,151.64,3.1199]
[1718167329463,8.35,151.65,151.64,2.7799]
[1718167329668,8.35,151.65,151.64,2.4399]
[1718167330375,8.35,151.65,151.63,2.44]
[1718167330565,8.35,151.68,151.64,2.4399]
[1718167330770,8.35,151.65,151.64,2.4399]
[1718167331586,33.4,151.68,151.65,2.4397]
[1718167331897,8.35,151.66,151.65,2.4397]
[1718167332066,16.6196,151.72,151.64,9.7599]
[1718167332266,8.35,151.67,151.66,2.4396]
[1718167335706,8.35,151.67,151.63,0.34]
[1718167335991,8.35,151.68,151.65,2.4397]
[1718167336161,8.35,151.66,151.65,2.4397]
[1718167336589,2.4391,151.7,151.65,2.4397]
[1718167336887,2.4391,151.7,151.66,2.4396]
[1718167337075,15.5779,151.77,151.67,0.34]
[1718167337386,2.4383,151.74,151.69,2.4391]
[1718167337566,8.35,151.7,151.69,2.4391]
[1718167339581,8.35,151.7,151.68,2.4392]
[1718167339782,8.35,151.69,151.68,2.4392]
[1718167340803,8.35,151.69,151.67,2.4394]
[1718167340977,8.35,151.68,151.67,2.4394]
[1718167342899,8.35,151.68,151.63,16.236]
[1718167343099,8.35,151.66,151.64,4.8799]
[1718167343315,8.35,151.66,151.65,2.4398]
[1718167344703,8.35,151.66,151.64,2.4399]
[1718167344877,8.35,151.65,151.64,2.4399]
[1718167345603,33.4,151.68,151.63,4.8802]
[1718167345810,8.35,151.64,151.63,4.8802]
[1718167346106,33.4,151.68,151.66,2.4396]
[1718167346307,8.35,151.67,151.66,2.4396]
[1718167346685,16.0583,151.71,151.65,4.8795]
[1718167346992,8.35,151.66,151.63,2.4399]
[1718167347189,33.4,151.68,151.64,2.4399]
[1718167347395,8.35,151.65,151.64,2.4399]
[1718167348300,33.4,151.68,151.65,2.4397]
[1718167348491,8.35,151.66,151.6,17.084]
[1718167348802,16.2647,151.74,151.7,2.439]
[1718167349010,8.35,151.71,151.68,2.4393]
[1718167349197,8.35,151.69,151.68,2.4393]
[1718167349509,2.4386,151.73,151.68,2.4393]
[1718167349709,8.35,151.69,151.68,2.4393]
[1718167351011,18.703,151.74,151.69,2.439]
[1718167351404,8.35,151.7,151.69,2.439]
[1718167351593,16.2647,151.74,151.67,7.3183]
[1718167351794,16.2647,151.74,151.66,13.8488]
[1718167351795,8.35,151.72,151.71,2.4388]
[1718167351990,16.2647,151.74,151.71,2.4388]
[1718167352307,8.35,151.72,151.71,2.4388]
[1718167352720,33.4,151.76,151.72,2.4386]
[1718167352895,8.35,151.73,151.72,2.4386]
[1718167353294,33.4,151.76,151.72,2.4386]
[1718167353490,8.35,151.73,151.72,2.4386]
[1718167355222,8.35,151.73,151.68,0.34]
[1718167355400,2.4383,151.75,151.7,2.4389]
[1718167355601,8.35,151.71,151.7,2.4389]
[1718167357122,33.4,151.76,151.72,2.4386]
[1718167357439,8.35,151.73,151.72,2.4386]
[1718167359521,8.35,151.73,151.71,2.4387]
[1718167359702,8.35,151.72,151.71,2.4387]
[1718167361524,8.35,151.72,151.69,2.439]
[1718167361723,2.4383,151.75,151.7,2.4389]
[1718167362024,8.35,151.71,151.67,29.7579]
[1718167362229,8.35,151.7,151.69,2.439]
[1718167364326,35.331,151.78,151.67,20.0]
[1718167364533,35.8381,151.76,151.71,2.4387]
[1718167364829,8.35,151.72,151.68,0.51]
[1718167365007,8.35,151.71,151.69,2.4391]
[1718167365207,8.35,151.71,151.7,2.439]